[Event "Baku Open 2024"]
[Site "Baku"]
[Date "2024.07.01"]
[Round "3.12"]
[White "Aarav Sinha"]
[Black "Asadli, Vugar"]
[Result "0-1"]
[ECO "C55"]
[WhiteElo "2300"]
[BlackElo "2560"]
[Annotator "TA"]
[PlyCount "62"]
[EventDate "2024.06.29"]
[EventType "swiss"]
[EventCountry "AZE"]
[SourceTitle "playchess.com"]
[Source "ChessBase"]
[SourceQuality "1"]
[TimeControl "5400+30"]

{[%evp 18,62,16,0,0,-6,2,-1,-14,-28,-5,-18,-17,-11,-20,-24,0,-25,-29,-33,-39,-54,-43,-89,-92,-85,-91,-85,-94,-92,-90,-96,-90,-382,-370,-385,-370,-393,-400,-430,-408,-404,-397,-389,-385,-382,-382]} 1. e4 {[%emt 0:01:44]} e5 {[%emt 0:01:27]} 2. Nf3 {[%emt 0:00:28]} Nc6 {[%emt 0:00:04]} 3. Bc4 {[%emt 0:01:16]} Nf6 {[%emt 0:00:24]} 4. d3 {[%emt 0:00:49]} Be7 {[%emt 0:00:13]} 5. c3 {[%emt 0:01:03]} O-O {[%emt 0:00:56]} 6. O-O {[%emt 0:00:50]} d5 {[%emt 0:05:26]} 7. exd5 {[%emt 0:02:33]} Nxd5 {[%emt 0:00:11]} 8. Re1 {[%emt 0:02:30]} Bg4 {[%emt 0:01:23]} 9. h3 {[%emt 0:00:40]} Bh5 {[%emt 0:03:39]} 10. Nbd2 {[%emt 0:02:26]} Nb6 {[%emt 0:09:05]} 11. Bb5 {[%emt 0:05:51]} f6 {[%emt 0:04:09]} 12. Bxc6 {[%emt 0:12:31]} bxc6 {[%emt 0:00:14] The position is equal.} 13. Ne4 {[%emt 0:00:39]} c5 {[%emt 0:09:44]} 14. Ng3 {[%emt 0:02:38]} Bg6 {[%emt 0:09:09]} 15. d4 {[%emt 0:00:59]} exd4 {[%emt 0:01:48]} 16. cxd4 {[%emt 0:00:08]} c4 {[%emt 0:00:22]} 17. Bd2 {[%emt 0:13:29]} Re8 {[%emt 0:06:02]} 18. b3 {[%emt 0:07:13]} Bd6 {[%emt 0:05:15]} 19. Rxe8+ {[%emt 0:08:02]} Qxe8 {[%emt 0:00:20]} 20. Nh4 {[%emt 0:03:39] [#]} (20. Qc1 $15) 20... c3 $1 $17 {[%emt 0:06:07] Threatens to win with ...Bxg3.} 21. Nxg6 {[%emt 0:07:43]} cxd2 {[%emt 0:07:21]} 22. Nh4 {[%emt 0:00:05]} Bxg3 {[%emt 0:00:44]} 23. fxg3 {[%emt 0:00:06]} Qe3+ {[%emt 0:00:02]} 24. Kh2 {[%emt 0:00:09]} Qxd4 {[%emt 0:00:10] Hoping for ...Rd8. Black is much more active.} 25. Rb1 $2 {[%emt 0:01:04][%mdl 8192] Now White is beyond hope.} (25. Nf3 $17 Qc3 26. Qg1 (26. Nxd2 $2 Rd8 $19)) 25... Rd8 $19 {[%emt 0:04:09] White must now prevent ...Qd3.} 26. Nf3 {[%emt 0:00:12]} Qc3 {[%emt 0:00:05]} 27. Qe2 {[%emt 0:06:07] [#]} Qc1 $1 {[%emt 0:02:58]} 28. Qe6+ {[%emt 0:04:30]} Kh8 {[%emt 0:01:36]} 29. Qe7 {[%emt 0:00:18] Black is winning.} Rc8 {[%emt 0:00:11]} (29... d1=R $2 {perishes.} 30. Rxc1 R1d7 31. Qc5 $18) 30. Nxd2 {[%emt 0:00:09]} Qxd2 {[%emt 0:00:05]} 31. Re1 {[%emt 0:00:01]} Qd7 {[%emt 0:00:33] Prevents Qe8+.   Weighted Error Value: White=0.26 (precise) /Black=0.05 (flawless) .  Loses game:     	White=1     	---        Mistake:       	White=1     	---        OK:         	White=6     	Black=9      Best:        	White=3     	Black=3      Strong:       	---       	Black=1} ({Weaker is} 31... Qxa2 32. Qe8+ Rxe8 33. Rxe8#) 0-1

[Event "Baku Open 2024"]
[Site "Baku"]
[Date "2024.07.01"]
[Round "3.13"]
[White "Moosavifar, Seyed Abolfazl"]
[Black "Shyam, Sundar M."]
[Result "0-1"]
[ECO "B03"]
[WhiteElo "2283"]
[BlackElo "2493"]
[Annotator "TA"]
[PlyCount "144"]
[EventDate "2024.06.29"]
[EventType "swiss"]
[EventCountry "AZE"]
[SourceTitle "playchess.com"]
[Source "ChessBase"]
[SourceQuality "1"]
[TimeControl "5400+30"]

{[%evp 47,144,-111,-100,-103,-91,-137,-85,-152,-139,-139,-130,-129,-120,-200,-185,-187,-198,-266,-256,-263,-251,-226,-267,-232,-266,-369,-355,-352,-312,-301,-231,-271,-237,-386,-385,-393,-385,-519,-546,-457,-457,-462,-404,-417,0,-507,-206,-206,-206,-474,-452,-700,-441,-572,-543,-537,-279,-197,0,-551,-515,-1094,-1087,-1004,-593,-5069,-443,-5185,-387,-5057,-5081,-2873,-5057,-4134,-2432,-2390,-1911,-5531,-5514,-5418,-5285,-29977,-29978,-29977,-29978,-29980,-29980,-29980,-29981,-29987,-29985,-29989,-29990,-29990,-29990,-29986,-29987,-29996,-29997]} 1. e4 {[%emt 0:00:02]} Nf6 {[%emt 0:03:17]} 2. e5 {[%emt 0:00:06]} Nd5 {[%emt 0:00:13]} 3. d4 {[%emt 0:00:01]} d6 {[%emt 0:00:10]} 4. c4 {[%emt 0:00:02]} Nb6 {[%emt 0:00:03]} 5. f4 {[%emt 0:00:08]} dxe5 {[%emt 0:00:14]} 6. fxe5 {[%emt 0:00:02]} Bf5 {[%emt 0:00:04]} 7. Be3 {[%emt 0:00:55]} e6 {[%emt 0:02:24]} 8. Nc3 {[%emt 0:00:06]} Bb4 $1 {[%emt 0:02:21] The main line 8...Bb4 scores better than 8...Nc6.} 9. a3 {[%emt 0:06:02] B03: Alekhine's Defence: Four Pawns Attack.} Bxc3+ {[%emt 0:00:07]} 10. bxc3 {[%emt 0:00:01]} Qh4+ {[%emt 0:12:17]} 11. Bf2 {[%emt 0:27:36]} Qe4+ {[%emt 0:02:22]} 12. Be2 {[%emt 0:00:05]} Nc6 {[%emt 0:32:32]} 13. Kf1 {[%emt 0:20:56]} O-O-O $146 {[%emt 0:00:11]} ({Predecessor:} 13... O-O 14. Nf3 Na5 15. Nd2 Qc2 16. Qxc2 Bxc2 17. Rc1 Bg6 18. Ke1 Rfd8 19. h4 h6 {1-0 Szurovszky,E-Ponyi,A Salgotarjan 1979}) 14. Nf3 {[%emt 0:02:44]} f6 {[%emt 0:00:03]} 15. c5 {[%emt 0:14:45]} Nd5 {[%emt 0:06:17]} 16. Qd2 {[%emt 0:00:02]} Nf4 {[%emt 0:09:22]} 17. Bg3 {[%emt 0:06:26]} fxe5 {[%emt 0:07:34]} 18. Bxf4 {[%emt 0:00:09]} Qxf4 {[%emt 0:00:05]} 19. Qxf4 {[%emt 0:00:05]} exf4 {[%emt 0:00:02]} 20. Bb5 {[%emt 0:01:09]} Ne7 {[%emt 0:00:35]} 21. Bc4 {[%emt 0:04:09]} Nd5 {[%emt 0:20:47]} 22. Bxd5 {[%emt 0:00:48]} exd5 {[%emt 0:00:00]} 23. Ne5 {[%emt 0:01:19]} Rde8 {[%emt 0:00:00]} 24. h4 {[%emt 0:02:47]} b6 {[%emt 0:00:00]} 25. c6 {[%emt 0:01:16]} Rhf8 {[%emt 0:00:00]} 26. Kf2 {[%emt 0:02:38]} (26. h5 $142) 26... Be4 {[%emt 0:00:00]} (26... Re6 $142 27. Nd7 Rg8) 27. Ra2 {[%emt 0:01:31]} (27. h5 $142) 27... Rf6 {[%emt 0:00:00]} 28. Re2 {[%emt 0:00:42]} Rxe5 {[%emt 0:00:00]} 29. dxe5 {[%emt 0:00:01]} Rxc6 {[%emt 0:04:00]} 30. Rc1 {[%emt 0:04:53] [#]} (30. Rd1 $17) 30... Rg6 $1 $19 {[%emt 0:00:00]} 31. Rg1 {[%emt 0:03:09]} Rg3 {[%emt 0:00:00]} 32. e6 {[%emt 0:00:37]} (32. c4 $142) 32... Kd8 $19 {[%emt 0:00:00]} ({And not} 32... Rxc3 33. Rd1 Rc4 (33... Rxa3 $2 34. Rxe4 dxe4 35. e7 $18) 34. e7 $16) 33. c4 {[%emt 0:01:06]} c6 {[%emt 0:00:00]} 34. cxd5 {[%emt 0:00:30]} cxd5 {[%emt 0:00:00]} ({Weaker is} 34... Bxd5 35. e7+ Ke8 36. a4 $11) 35. a4 {[%emt 0:00:30]} Ke7 {[%emt 0:00:00]} 36. a5 {[%emt 0:00:24]} bxa5 {[%emt 0:01:01]} 37. Ra2 {[%emt 0:00:08]} Kxe6 {[%emt 0:00:14]} 38. Rxa5 {[%emt 0:00:01]} Rb3 {[%emt 0:00:57]} 39. Ra2 {[%emt 0:00:17]} Kf5 {[%emt 0:00:52]} 40. Re1 {[%emt 0:01:39]} (40. Rc1 $142) 40... h5 $19 {[%emt 0:00:39]} 41. Rxa7 {[%emt 0:00:22]} g6 {[%emt 0:00:13]} 42. Ra2 {[%emt 0:00:46]} Kg4 {[%emt 0:00:26]} 43. Rh1 {[%emt 0:00:09]} Rg3 {[%emt 0:00:34]} 44. Rh2 {[%emt 0:00:09]} Rc3 {[%emt 0:00:22]} (44... d4 $2 45. Ra4 $17) 45. Rh1 {[%emt 0:00:35]} Rg3 {[%emt 0:00:51]} 46. Rh2 {[%emt 0:00:04]} d4 {[%emt 0:00:35]} (46... f3 $142 47. gxf3+ Rxf3+ 48. Kg1 Rh3) 47. Ra5 {[%emt 0:00:30]} Bf5 {[%emt 0:00:01]} 48. Ra4 $2 {[%emt 0:00:55]} (48. Rh3) 48... Rd3 {[%emt 0:01:08]} 49. Ra2 {[%emt 0:00:07]} (49. Rh3 $142 Rd2+ 50. Kf1) 49... Re3 {[%emt 0:01:15]} 50. Rd2 {[%emt 0:00:19]} d3 {[%emt 0:00:08]} 51. Rh1 {[%emt 0:01:40]} Be4 {[%emt 0:00:05]} 52. Rh2 {[%emt 0:00:26]} Bf5 $2 {[%emt 0:00:49]} (52... Bb7 53. Rh3 Rxh3 54. gxh3+ Kxh3 55. Rxd3+ Kxh4) 53. Rh1 $1 $19 {[%emt 0:00:20]} Re8 {[%emt 0:00:31]} 54. Rh2 {[%emt 0:00:48]} (54. Rg1 $142 Kxh4 55. g3+ fxg3+ 56. Rxg3) 54... Rc8 $19 {[%emt 0:00:13]} 55. Rh3 {[%emt 0:00:27]} Be4 {[%emt 0:00:49]} 56. Ke1 {[%emt 0:00:30]} Rc7 {[%emt 0:01:13]} (56... Rc1+ $142 57. Kf2 Rc2 58. Rxc2 dxc2) 57. Kf2 {[%emt 0:00:29]} (57. Rhxd3 $142 Bxd3 (57... Kxh4 58. Rd4 $11) 58. Rxd3 Kxh4 59. Rf3) 57... Rc1 $2 {[%emt 0:00:27]} (57... Rc2 58. Rxc2 dxc2) 58. Ra2 $2 {[%emt 0:00:33]} (58. Rhxd3 Bxd3 (58... Kxh4 59. Rd4 $14) 59. Rxd3 Kxh4 60. Kf3) 58... Rc2+ $19 {[%emt 0:00:19]} 59. Rxc2 {[%emt 0:00:01]} dxc2 {[%emt 0:00:01]} 60. Rh1 {[%emt 0:00:35]} Bd3 {[%emt 0:00:07]} 61. Ra1 {[%emt 0:00:45]} Bf5 {[%emt 0:00:28]} 62. Rh1 {[%emt 0:00:18]} Be4 {[%emt 0:00:05]} 63. Ra1 {[%emt 0:00:38]} Kxh4 {[%emt 0:00:04]} 64. Kg1 {[%emt 0:00:13]} g5 {[%emt 0:00:47]} 65. Kf2 {[%emt 0:00:18]} g4 {[%emt 0:00:39]} 66. Rh1+ {[%emt 0:00:32]} Kg5 {[%emt 0:00:03]} 67. Ra1 {[%emt 0:00:08]} g3+ {[%emt 0:00:08]} 68. Kg1 {[%emt 0:00:13]} Kg4 {[%emt 0:00:24]} 69. Re1 {[%emt 0:00:05]} h4 {[%emt 0:00:12]} 70. Rc1 {[%emt 0:00:26]} h3 {[%emt 0:00:17]} 71. gxh3+ {[%emt 0:00:06]} Kxh3 {[%emt 0:00:02]} 72. Re1 {[%emt 0:00:08]} f3 {[%emt 0:00:06]} 0-1

[Event "Baku Open 2024"]
[Site "Baku"]
[Date "2024.07.01"]
[Round "3.14"]
[White "Tsaruk, Maksim"]
[Black "Mohamed Anees M"]
[Result "1/2-1/2"]
[ECO "C41"]
[WhiteElo "2480"]
[BlackElo "2306"]
[Annotator "TA"]
[PlyCount "93"]
[EventDate "2024.06.29"]
[EventType "swiss"]
[EventCountry "AZE"]
[SourceTitle "playchess.com"]
[Source "ChessBase"]
[SourceQuality "1"]
[TimeControl "5400+30"]

{[%evp 17,93,36,29,24,38,42,35,24,40,39,147,146,156,191,256,264,253,267,259,245,427,414,386,243,292,284,287,273,336,333,322,302,304,310,298,282,281,279,265,254,354,338,353,341,347,370,371,361,442,333,328,355,339,182,293,34,76,8,8,8,9,8,15,0,0,0,0,0,0,0,0,-13,0,0,0,0,0,0]} 1. e4 {[%emt 0:00:04]} d6 {[%emt 0:00:22]} 2. d4 {[%emt 0:00:17]} Nf6 {[%emt 0:00:07]} 3. Nc3 {[%emt 0:00:12]} e5 {[%emt 0:00:06]} 4. Nf3 {[%emt 0:00:18]} Nbd7 {[%emt 0:00:08]} 5. Bc4 {[%emt 0:00:22]} Be7 {[%emt 0:00:21]} 6. O-O {[%emt 0:00:16]} O-O {[%emt 0:00:08]} 7. a4 {[%emt 0:00:15]} c6 {[%emt 0:00:25]} 8. Re1 {[%emt 0:00:21]} h6 {[%emt 0:00:24]} 9. h3 {[%emt 0:00:37]} Re8 {[%emt 0:00:11]} 10. Ba2 {[%emt 0:05:19]} Bf8 {[%emt 0:02:11]} 11. Be3 {[%emt 0:01:44]} b6 {[%emt 0:07:29]} 12. Qd3 {[%emt 0:08:09] White is slightly better.} (12. dxe5 {simplifies} Nxe5 13. Nxe5 dxe5 14. Qxd8 Rxd8 15. Bc4) 12... Bb7 {[%emt 0:03:32]} 13. Rad1 {[%emt 0:01:07]} a6 {[%emt 1:21:36]} ({Black should play} 13... d5 $14) 14. dxe5 $16 {[%emt 0:03:54]} dxe5 {[%emt 0:00:00]} 15. Nh4 $1 {[%emt 0:00:46][%cal Bf3h4,Bh4f5,Bf5h6,Bh6f7][%mdl 32] White has more active pieces.} b5 {[%emt 0:00:00] [#]} (15... Bc8 $142 16. Qc4 Re6) 16. Bxh6 $1 $18 {[%emt 0:05:32][%mdl 512]} gxh6 {[%emt 0:00:00]} 17. Qg3+ {[%emt 0:00:07]} Kh8 {[%emt 0:00:00]} 18. Bxf7 {[%emt 0:00:09]} Bg7 $2 {[%emt 0:00:00]} (18... Re7 {was worth a try.} 19. Ng6+ Kh7) 19. Nf5 {[%emt 0:03:02][%csl Gf5][%cal Rg3g7]} Rg8 {[%emt 0:00:00]} 20. Qg6 {[%emt 0:08:35]} Qc7 {[%emt 0:00:00] ...Nf8 is the strong threat.} 21. Bxg8 {[%emt 0:07:18]} ({Resist} 21. Nxh6 $6 Nf8 22. Qf5 Bc8 $18) 21... Rxg8 {[%emt 0:00:00]} 22. Nxh6 {[%emt 0:04:53][%cal Rh6f7]} Rf8 {[%emt 0:00:00]} 23. Nf7+ {[%emt 0:07:29]} Kg8 {[%emt 0:00:00]} 24. Ng5 {[%emt 0:07:48] And now Ne6 would win.} Qc8 {[%emt 0:00:00]} 25. Ne6 {[%emt 0:01:06][%csl Ge6][%cal Rg6g7]} Rf7 {[%emt 0:00:00]} 26. Rd6 {[%emt 0:01:34]} Nf8 {[%emt 0:00:00]} 27. Nxf8 {[%emt 0:00:20]} Rxf8 {[%emt 0:00:00]} 28. Red1 {[%emt 0:03:27]} c5 {[%emt 0:00:00]} 29. axb5 {[%emt 0:02:45]} axb5 {[%emt 0:00:00]} 30. f3 {[%emt 0:00:07]} Bc6 {[%emt 0:00:00]} 31. Ne2 {[%emt 0:06:23]} Be8 {[%emt 0:00:00]} 32. Qg5 {[%emt 0:00:06]} Nh5 {[%emt 0:00:00]} 33. Rd8 {[%emt 0:04:00]} Qe6 {[%emt 0:00:00]} 34. R1d6 {[%emt 0:02:50]} Qf7 {[%emt 0:00:00]} 35. Rh6 {[%emt 0:05:27]} (35. Ra8 $142) 35... Nf4 {[%emt 0:00:00] [#]} (35... Nf6 {is a better defense.} 36. Rh4 Nh7) 36. Nxf4 $2 {[%emt 0:01:47]} (36. Ng3 $1 $18 {[%cal Rg3f5]} Ne6 37. Rxe6 Qxe6 38. Nf5) 36... Qxf4 $14 {[%emt 0:00:00]} 37. h4 {[%emt 0:04:34]} (37. Qxf4 $16 {White threatens Qg5 and mate.} exf4 38. Rb6 (38. Re6 Kf7 $14) 38... Bxb2 39. Kh1) 37... Qxg5 $11 {[%emt 0:00:00] The position is equal.} 38. hxg5 {[%emt 0:00:05]} Bxh6 {[%emt 0:00:00]} 39. gxh6 {[%emt 0:00:04][%mdl 4096] Endgame. KRB-KR} Kh7 {[%emt 0:00:00]} 40. b3 {[%emt 0:00:06]} Kxh6 {[%emt 0:00:00]} 41. Rc8 {[%emt 0:00:24]} Kg6 {[%emt 0:00:25]} 42. Rxc5 {[%emt 0:00:40]} Kf6 {[%emt 0:00:05]} 43. Rc8 {[%emt 0:00:51]} Ke7 {[%emt 0:00:06]} 44. Kf2 {[%emt 0:00:31]} Rh8 {[%emt 0:04:23]} 45. Rc5 {[%emt 0:01:45]} Kd6 {[%emt 0:00:12]} 46. Rc8 {[%emt 0:00:05]} Ke7 {[%emt 0:00:13]} 47. Rc5 {[%emt 0:00:05] White really could win this.   Weighted Error Value: White=0.26 (precise) /Black=0.37.  Missed win:     	White=1     	---        Mistake:       	White=2     	Black=4      Inaccurate:     	White=1     	Black=2      OK:         	White=19    	Black=15     Best:        	White=2     	Black=2} 1/2-1/2

[Event "Baku Open 2024"]
[Site "Baku"]
[Date "2024.07.01"]
[Round "3.15"]
[White "Suleimen, Ergali"]
[Black "Assaubayeva, Bibisara"]
[Result "0-1"]
[ECO "C88"]
[WhiteElo "2254"]
[BlackElo "2472"]
[Annotator "RC"]
[PlyCount "112"]
[EventDate "2024.06.29"]
[EventType "swiss"]
[EventCountry "AZE"]
[SourceTitle "playchess.com"]
[Source "ChessBase"]
[SourceQuality "1"]
[TimeControl "5400+30"]

1. e4 {[%emt 0:00:12]} e5 {[%emt 0:00:10]} 2. Nf3 {[%emt 0:00:19]} Nc6 {[%emt 0:00:07]} 3. Bb5 {[%emt 0:00:27]} a6 {[%emt 0:00:14]} 4. Ba4 {[%emt 0:00:09]} Nf6 {[%emt 0:00:27]} 5. O-O {[%emt 0:00:29]} Be7 {[%emt 0:00:23]} 6. Re1 {[%emt 0:00:27]} b5 {[%emt 0:00:05]} 7. Bb3 {[%emt 0:00:07]} O-O {[%emt 0:00:06]} 8. a4 {[%emt 0:00:26]} Rb8 {[%emt 0:00:07]} 9. c3 {[%emt 0:05:06]} d6 {[%emt 0:00:11]} 10. axb5 {[%emt 0:00:55]} axb5 {[%emt 0:00:07]} 11. d4 {[%emt 0:00:08]} exd4 {[%emt 0:00:08]} 12. cxd4 {[%emt 0:00:14]} d5 {[%emt 0:00:06]} 13. e5 {[%emt 0:00:51]} Ne4 {[%emt 0:00:06]} 14. Nc3 {[%emt 0:05:43]} Nxc3 {[%emt 0:00:07]} 15. bxc3 {[%emt 0:00:08]} Bf5 {[%emt 0:00:05]} 16. Be3 {[%emt 0:02:40]} Qd7 {[%emt 0:00:47]} 17. Qe2 {[%emt 0:02:42]} Nd8 {[%emt 0:07:08]} 18. Nd2 {[%emt 0:20:54]} Bg6 {[%emt 0:05:01]} 19. f4 {[%emt 0:03:54]} f5 {[%emt 0:12:32]} 20. exf6 {[%emt 0:05:51]} Bxf6 {[%emt 0:03:11]} 21. g4 {[%emt 0:21:18]} b4 {[%emt 0:08:48]} 22. c4 {[%emt 0:06:46]} Nc6 {[%emt 0:02:05]} 23. Qg2 {[%emt 0:04:44]} Bxd4 {[%emt 0:07:24]} 24. Qxd5+ {[%emt 0:05:40]} Qxd5 {[%emt 0:00:19]} 25. cxd5 {[%emt 0:00:05]} Bxe3+ {[%emt 0:00:03]} 26. Rxe3 {[%emt 0:00:05]} Nd4 {[%emt 0:00:18]} 27. f5 {[%emt 0:00:11]} Bf7 {[%emt 0:00:24]} 28. Rc1 {[%emt 0:03:43]} Rfe8 {[%emt 0:02:24]} 29. Rxe8+ {[%emt 0:06:19]} Rxe8 {[%emt 0:00:01]} 30. Rxc7 {[%emt 0:02:55]} Nxb3 {[%emt 0:00:21]} 31. Nxb3 {[%emt 0:00:07]} Bxd5 {[%emt 0:00:05]} 32. Nc5 {[%emt 0:00:43]} b3 {[%emt 0:02:00]} 33. Nxb3 {[%emt 0:00:53]} Bxb3 {[%emt 0:00:17]} 34. Kf2 {[%emt 0:00:05]} Bd1 {[%emt 0:04:38]} 35. Rc4 {[%emt 0:00:42]} h6 {[%emt 0:02:02]} 36. Rd4 {[%emt 0:00:10]} Bc2 {[%emt 0:02:14]} 37. Rd2 {[%emt 0:00:24]} Be4 {[%emt 0:01:00]} 38. Re2 {[%emt 0:00:33]} Kf7 {[%emt 0:00:54]} 39. h3 {[%emt 0:00:44]} Re7 {[%emt 0:00:20]} 40. Rd2 {[%emt 0:00:30]} Bb7 {[%emt 0:00:51]} 41. Rd6 {[%emt 0:00:34]} Rc7 {[%emt 0:00:28]} 42. Rd3 {[%emt 0:02:37]} Be4 {[%emt 0:02:22]} 43. Re3 {[%emt 0:00:00]} Rc4 {[%emt 0:00:23]} 44. Kg3 {[%emt 0:00:00]} Kf6 {[%emt 0:00:21]} 45. Ra3 {[%emt 0:00:00]} Bb7 {[%emt 0:02:40]} 46. Re3 {[%emt 0:00:04]} Rb4 {[%emt 0:02:45]} 47. Rd3 {[%emt 0:00:39]} Ke5 {[%emt 0:02:45]} 48. Re3+ {[%emt 0:00:34]} Be4 {[%emt 0:00:16]} 49. Ra3 {[%emt 0:00:07]} Rd4 {[%emt 0:09:06]} 50. Ra7 {[%emt 0:01:35]} Rd3+ {[%emt 0:01:32]} 51. Kh4 {[%emt 0:00:08]} Bg2 {[%emt 0:00:51]} 52. Kh5 {[%emt 0:00:05]} Kf6 {[%emt 0:00:29]} 53. Ra6+ {[%emt 0:01:22]} Kf7 {[%emt 0:00:02]} 54. h4 {[%emt 0:00:41]} Bf3 {[%emt 0:01:36]} 55. Ra4 {[%emt 0:00:35]} Kg8 {[%emt 0:04:12]} 56. Kg6 {[%emt 0:00:30]} Bc6 {[%emt 0:00:59]} 0-1

[Event "Baku Open 2024"]
[Site "Baku"]
[Date "2024.07.01"]
[Round "3.16"]
[White "Agmanov, Zhandos"]
[Black "Khamdamova, Afruza"]
[Result "1/2-1/2"]
[ECO "C92"]
[WhiteElo "2464"]
[BlackElo "2291"]
[Annotator "TA"]
[PlyCount "158"]
[EventDate "2024.06.29"]
[EventType "swiss"]
[EventCountry "AZE"]
[SourceTitle "playchess.com"]
[Source "ChessBase"]
[SourceQuality "1"]
[TimeControl "5400+30"]

{[%evp 50,158,0,0,0,0,0,0,9,0,32,40,39,13,63,61,55,43,37,0,17,0,0,11,7,14,25,27,11,10,17,15,16,12,20,14,35,0,0,0,60,58,50,41,78,78,85,81,85,67,87,87,88,97,130,53,99,99,100,8,10,0,8,8,20,14,14,8,8,8,151,14,14,14,14,8,8,8,8,8,8,8,8,8,8,8,8,0,8,0,8,8,8,8,8,8,8,8,8,8,8,0,0,0,0,0,0,0,0,0,0]} 1. e4 {[%emt 0:00:57]} e5 {[%emt 0:00:03]} 2. Nf3 {[%emt 0:00:22]} Nc6 {[%emt 0:00:07]} 3. Bb5 {[%emt 0:00:26]} a6 {[%emt 0:00:06]} 4. Ba4 {[%emt 0:00:05]} Nf6 {[%emt 0:00:05]} 5. O-O {[%emt 0:00:56]} Be7 {[%emt 0:00:04]} 6. Re1 {[%emt 0:00:08]} b5 {[%emt 0:00:04]} 7. Bb3 {[%emt 0:00:06]} d6 {[%emt 0:00:03]} 8. c3 {[%emt 0:00:11]} O-O {[%emt 0:00:07]} 9. h3 {[%emt 0:00:06]} Bb7 {[%emt 0:00:04]} 10. d4 {[%emt 0:00:19]} Re8 {[%emt 0:00:04]} 11. a3 {[%emt 0:00:57]} h6 {[%emt 0:01:30]} 12. Ba2 {[%emt 0:01:06]} Bf8 {[%emt 0:00:08]} 13. d5 {[%emt 0:00:05]} Ne7 {[%emt 0:00:48]} 14. b3 {[%emt 0:01:56]} c6 {[%emt 0:00:16]} 15. c4 {[%emt 0:00:17]} a5 {[%emt 0:00:47]} 16. Nc3 {[%emt 0:07:06]} b4 {[%emt 0:03:16]} 17. dxc6 {[%emt 0:01:59]} Nxc6 {[%emt 0:02:31]} 18. Nd5 {[%emt 0:11:49]} bxa3 {[%emt 0:02:19]} 19. Nxf6+ {[%emt 0:07:20]} Qxf6 {[%emt 0:00:16]} 20. Bb1 {[%emt 0:00:16]} Rab8 {[%emt 0:25:30]} 21. Bxa3 {[%emt 0:03:30]} Bc8 {[%emt 0:09:11]} 22. Re3 {[%emt 0:12:26]} Be7 {[%emt 0:03:50]} 23. Rd3 {[%emt 0:14:03]} Nb4 {[%emt 0:10:27]} 24. Bxb4 {[%emt 0:01:45]} axb4 {[%emt 0:00:04]} 25. Ne1 {[%emt 0:00:26]} Bb7 {[%emt 0:01:56]} 26. Re3 {[%emt 0:23:00]} Bd8 {[%emt 0:22:02]} 27. Nc2 {[%emt 0:01:28]} Bb6 {[%emt 0:02:33]} 28. Rf3 {[%emt 0:01:47]} Qg6 {[%emt 0:00:13]} 29. Ne3 {[%emt 0:05:51]} (29. Nxb4 {keeps more tension.} Bd4 30. Ra2 Bxe4 31. Bxe4 Qxe4 32. Re2) 29... Bxe3 {[%emt 0:08:02]} 30. Rxe3 {[%emt 0:00:06]} Ra8 {[%emt 0:02:41]} 31. Bd3 {[%emt 0:01:28]} Bc6 {[%emt 0:00:45]} (31... Ra3 $11) 32. Rxa8 $14 {[%emt 0:01:19]} Rxa8 {[%emt 0:00:01]} 33. Qe1 {[%emt 0:01:20]} Rb8 {[%emt 0:00:07]} 34. Re2 {[%emt 0:00:20]} Qg5 {[%emt 0:01:33]} 35. Ra2 {[%emt 0:00:49]} Qd8 {[%emt 0:06:27]} 36. Ra6 {[%emt 0:01:20]} Qc7 {[%emt 0:00:00]} 37. Qe3 {[%emt 0:00:01]} Qb7 {[%emt 0:00:00]} 38. Ra7 {[%emt 0:01:25]} Qb6 {[%emt 0:00:00]} 39. Qxb6 {[%emt 0:00:22]} Rxb6 {[%emt 0:00:00]} 40. f3 {[%emt 0:00:29]} Kf8 {[%emt 0:00:14]} 41. Kf2 {[%emt 0:00:36]} Ke8 {[%emt 0:00:31]} 42. Ke3 {[%emt 0:00:10]} Rb8 {[%emt 0:01:56]} 43. f4 {[%emt 0:00:57]} exf4+ {[%emt 0:00:33]} 44. Kxf4 {[%emt 0:00:03]} Rb7 {[%emt 0:00:36]} ({Better is} 44... Ra8 $11 45. Rxa8+ Bxa8) 45. Ra6 $14 {[%emt 0:00:39]} Kd7 {[%emt 0:00:06]} 46. g4 {[%emt 0:00:50]} Kc7 {[%emt 0:00:10]} 47. e5 {[%emt 0:00:24]} dxe5+ {[%emt 0:00:11]} 48. Kxe5 {[%emt 0:00:01]} Rb8 {[%emt 0:00:13]} 49. Ra7+ {[%emt 0:00:55]} Bb7 {[%emt 0:00:43]} 50. c5 {[%emt 0:00:26]} Re8+ {[%emt 0:00:20]} 51. Kd4 {[%emt 0:00:09]} Kb8 {[%emt 0:00:45]} 52. Ra1 {[%emt 0:00:49]} (52. Ra4 $16) 52... Rd8+ {[%emt 0:01:19]} (52... Kc7 $14) 53. Kc4 $16 {[%emt 0:00:32]} Bd5+ {[%emt 0:00:11] [#]} 54. Kxb4 {[%emt 0:00:14]} (54. Kb5 $1 $16) 54... Bxb3 $1 $11 {[%emt 0:00:13]} 55. Bb5 {[%emt 0:00:03]} Rd1 {[%emt 0:00:49]} 56. Ra6 {[%emt 0:01:26]} Bd5 {[%emt 0:01:09]} 57. Rd6 {[%emt 0:00:30]} Bf3 $1 {[%emt 0:00:20]} 58. Bc4 {[%emt 0:00:17]} Rxd6 {[%emt 0:00:38]} 59. cxd6 {[%emt 0:01:17]} h5 {[%emt 0:00:29]} (59... Bg2 $11) 60. g5 {[%emt 0:00:00]} (60. Bxf7 $16 hxg4 61. Bh5) 60... f6 $11 {[%emt 0:00:20]} 61. gxf6 {[%emt 0:00:00]} gxf6 {[%emt 0:00:03]} 62. Be6 {[%emt 0:00:00]} Kb7 {[%emt 0:00:52]} 63. Kc5 {[%emt 0:00:00]} h4 {[%emt 0:00:42]} 64. Bf5 {[%emt 0:01:22]} Bg2 {[%emt 0:00:08]} 65. Bd7 {[%emt 0:00:07]} Bf3 {[%emt 0:00:13]} 66. Be6 {[%emt 0:01:21]} Bg2 {[%emt 0:00:05]} 67. Bg4 {[%emt 0:00:13]} (67. d7 $5 Kc7 $8 68. Kd4 $11) 67... Bh1 {[%emt 0:00:26]} 68. Bf5 {[%emt 0:00:54]} (68. d7 $5 Kc7 $8 69. d8=R Kxd8 70. Kd6 $11) 68... Bg2 {[%emt 0:00:03]} 69. Be6 {[%emt 0:00:24]} Bf3 {[%emt 0:00:05]} 70. Bd7 {[%emt 0:00:29]} Bg2 {[%emt 0:00:05]} 71. Bf5 {[%emt 0:00:22]} Bf3 {[%emt 0:00:14]} 72. Bd3 {[%emt 0:00:26]} Kc8 {[%emt 0:00:13]} 73. Ba6+ {[%emt 0:00:36]} Kd8 {[%emt 0:00:44]} 74. Bc4 {[%emt 0:00:19]} f5 {[%emt 0:01:36]} 75. Be6 {[%emt 0:00:35]} f4 {[%emt 0:00:15]} 76. Kd4 {[%emt 0:00:22]} Bc6 {[%emt 0:00:14]} 77. Bg4 {[%emt 0:00:50]} Bb7 {[%emt 0:00:28]} 78. Kd3 {[%emt 0:00:29]} Bc6 {[%emt 0:00:16]} 79. Kd4 {[%emt 0:00:22]} Bb7 {[%emt 0:03:32]} 1/2-1/2